bitfinex-derivatives/quotes_SOLF0:USTF0_20250829
["timestamp","ask_amount","ask_price","bid_price","bid_amount"]
[1756438105897,7.45,216.04,215.94,2.59512997]
[1756438106493,7.45,216.04,215.95,7.44]
[1756438107398,7.45,216.04,215.97,2.59512997]
[1756438111295,7.45,216.04,215.95,7.44]
[1756438118904,2.59512997,216.03,215.95,7.44]
[1756438119105,7.21,216.02,215.95,7.44]
[1756438124898,2.59512997,216.08,215.95,7.44]
[1756438125097,13.63877788,216.07,215.95,7.44]
[1756438125303,7.21,216.07,215.95,7.44]
[1756438125802,7.21,216.04,215.95,7.44]
[1756438127007,7.21,216.04,215.89,7.19553773]
[1756438127306,26.41,216.11,215.9,7.37]
[1756438127307,7.21,216.01,215.9,7.37]
[1756438127506,9.80512997,216.01,215.9,7.37]
[1756438128305,7.21,215.97,215.9,7.37]
[1756438129003,2.59512997,215.98,215.86,9.96512997]
[1756438129209,7.21,215.97,215.86,9.96512997]
[1756438129905,7.21,215.97,215.87,7.37]
[1756438130206,7.21,216.0,215.9,2.59512997]
[1756438130403,7.21,216.0,215.91,7.37]
[1756438135612,7.21,215.97,215.87,7.37]
[1756438140514,7.21,215.97,215.89,2.59512997]
[1756438140715,7.21,216.0,215.9,7.37]
[1756438141316,7.21,216.0,215.93,0.03093742]
[1756438141517,7.24367951,215.97,215.93,7.40093742]
[1756438142814,0.03367951,215.97,215.93,0.03093742]
[1756438143015,7.21,215.96,215.93,0.03093742]
[1756438143520,0.03367951,215.97,215.93,0.03093742]
[1756438143817,7.21,215.96,215.93,0.03093742]
[1756438144320,0.03367951,215.97,215.93,0.03093742]
[1756438144522,7.21,215.96,215.93,0.03093742]
[1756438145025,0.03367951,215.97,215.93,0.03093742]
[1756438145726,7.21,215.96,215.93,0.03093742]
[1756438145919,0.03367951,215.97,215.93,0.03093742]
[1756438146320,7.62,215.96,215.93,0.03093742]
[1756438147025,0.03367951,215.97,215.93,0.03093742]
[1756438147227,7.62,215.96,215.93,0.03093742]
[1756438148127,0.03367951,215.97,215.93,0.03093742]
[1756438148624,7.62,215.96,215.93,0.03093742]
[1756438149030,0.03367951,215.97,215.93,0.03093742]
[1756438149231,7.62,215.96,215.93,0.03093742]
[1756438149530,0.03367951,215.97,215.93,0.03093742]
[1756438149732,7.62,215.96,215.93,0.03093742]
[1756438149922,0.03367951,215.97,215.93,0.03093742]
[1756438150334,7.62,215.96,215.93,0.03093742]
[1756438150725,0.03367951,215.97,215.93,0.03093742]
[1756438152130,7.62,215.96,215.93,0.03093742]
[1756438153130,0.03367951,215.97,215.93,0.03093742]
[1756438153532,7.62,215.96,215.93,0.03093742]
[1756438153728,0.03367951,215.97,215.93,0.03093742]
[1756438153924,7.62,215.96,215.93,0.03093742]
[1756438154332,0.03367951,215.97,215.93,0.03093742]
[1756438154832,7.62,215.96,215.93,0.03093742]
[1756438155231,0.03367951,215.97,215.93,0.03093742]
[1756438157931,7.62,215.96,215.93,0.03093742]
[1756438158140,0.03367951,215.97,215.93,0.03093742]
[1756438158537,7.62,215.96,215.93,0.03093742]
[1756438159038,0.03367951,215.97,215.93,0.03093742]
[1756438159836,7.62,215.96,215.93,0.03093742]
[1756438160541,0.03367951,215.97,215.93,0.03093742]
[1756438161041,7.62,215.96,215.93,0.03093742]
[1756438161241,0.03367951,215.97,215.93,0.03093742]
[1756438162042,7.62,215.96,215.93,0.03093742]
[1756438162338,0.03367951,215.97,215.93,0.03093742]
[1756438162539,7.62,215.96,215.93,0.03093742]
[1756438162740,0.03367951,215.97,215.93,0.03093742]
[1756438162941,7.62,215.96,215.93,0.03093742]
[1756438163141,0.03367951,215.97,215.93,0.03093742]
[1756438163936,7.62,215.96,215.93,0.03093742]
[1756438164141,0.03367951,215.97,215.93,0.03093742]
[1756438164342,7.62,215.96,215.93,0.03093742]
[1756438164643,0.03367951,215.97,215.93,0.03093742]
[1756438165341,7.62,215.96,215.93,0.03093742]
[1756438165640,0.03367951,215.97,215.93,0.03093742]
[1756438165946,0.03367951,215.97,215.94,7.5]
[1756438166138,0.03367951,215.97,215.93,0.03093742]
[1756438166339,0.03367951,215.97,215.94,7.5]
[1756438166844,0.03367951,215.97,215.93,0.03093742]
[1756438167040,0.03367951,215.97,215.94,7.5]
[1756438167339,0.03367951,215.97,215.93,0.03093742]
[1756438167546,0.03367951,215.97,215.94,7.5]
[1756438168546,0.03367951,215.97,215.93,0.03093742]
[1756438168841,0.03367951,215.97,215.94,7.5]
[1756438169239,7.62,215.96,215.93,0.03093742]
[1756438169640,0.03367951,215.97,215.93,0.03093742]
[1756438170037,0.03367951,215.97,215.94,7.5]
[1756438171442,7.65367951,215.97,215.94,7.5]
[1756438173452,0.03367951,215.97,215.93,0.03093742]
[1756438173652,0.03367951,215.97,215.94,7.5]
[1756438177255,0.03367951,215.97,215.93,0.03093742]
[1756438177454,0.03367951,215.97,215.94,7.14]
[1756438177853,0.03367951,215.97,215.93,0.03093742]
[1756438178051,0.03367951,215.97,215.94,7.14]
[1756438178947,0.03367951,215.97,215.93,0.03093742]
[1756438179348,7.79367951,215.97,215.94,7.14]
[1756438179548,0.03367951,215.97,215.93,0.03093742]
[1756438179845,7.76,215.96,215.93,0.03093742]
[1756438180251,2.62880948,215.97,215.93,0.03093742]
[1756438180553,7.76,215.96,215.93,0.03093742]
[1756438181747,10.38880948,215.97,215.93,0.03093742]
[1756438181957,10.38880948,215.97,215.93,7.17093742]
[1756438182455,0.03367951,215.97,215.93,0.03093742]
[1756438182757,7.79367951,215.97,215.94,7.14]
[1756438182957,7.76,215.96,215.93,0.03093742]
[1756438184155,0.03367951,215.97,215.93,0.03093742]
[1756438184855,0.03367951,215.97,215.94,7.14]
[1756438186159,7.79367951,215.97,215.93,7.17093742]
[1756438186362,0.03367951,215.97,215.94,7.14]
[1756438186955,0.03367951,215.97,215.93,0.03093742]
[1756438187463,0.03367951,215.97,215.94,7.14]
[1756438188164,0.03367951,215.97,215.93,0.03093742]
[1756438188555,0.03367951,215.97,215.94,7.14]
[1756438189367,0.03367951,215.97,215.93,0.03093742]
[1756438189565,7.76,215.96,215.93,0.03093742]
[1756438190064,7.76,215.96,215.93,7.17093742]
[1756438190766,7.76,215.96,215.93,0.03093742]
[1756438192667,0.03367951,215.97,215.93,0.03093742]
[1756438193462,7.76,215.96,215.93,0.03093742]
[1756438193967,0.03367951,215.97,215.93,0.03093742]
[1756438194167,13.59402743,215.96,215.93,0.03093742]
[1756438194366,7.76,215.94,215.93,0.03093742]
[1756438194572,10.99889746,215.94,215.93,0.03093742]
[1756438195575,14.45470421,215.94,215.93,0.03093742]
[1756438197468,10.99889746,215.94,215.93,0.03093742]
[1756438197671,3.23889746,215.94,215.93,0.03093742]
[1756438197868,7.76,215.96,215.93,0.03093742]
[1756438198069,0.03367951,215.97,215.93,0.03093742]
[1756438198374,7.76,215.95,215.93,0.03093742]
[1756438199770,0.03367951,215.97,215.93,0.03093742]
[1756438199972,7.76,215.95,215.93,0.03093742]
[1756438200177,0.03367951,215.97,215.93,0.03093742]
[1756438200380,3.23877893,215.96,215.93,0.03093742]
[1756438200574,7.76,215.94,215.93,0.03093742]
[1756438202675,7.76,215.96,215.93,0.03093742]
[1756438202871,0.03367951,215.97,215.94,7.14]
[1756438203072,7.79367951,215.97,215.94,7.14]
[1756438203276,7.79367951,215.97,215.93,0.03093742]
[1756438203482,7.76,215.96,215.93,0.03093742]
[1756438203691,0.03367951,215.97,215.93,0.03093742]
[1756438203989,3.23720085,215.96,215.93,0.03093742]
[1756438204190,7.76,215.96,215.93,0.03093742]
[1756438204389,0.03367951,215.97,215.93,0.03093742]
[1756438204585,7.76,215.95,215.93,0.03093742]
[1756438204784,7.76,215.96,215.93,0.03093742]
[1756438204985,0.03367951,215.97,215.93,0.03093742]
[1756438205178,7.76,215.95,215.93,0.03093742]
[1756438205382,7.76,215.96,215.93,0.03093742]
[1756438205577,0.03367951,215.97,215.93,0.03093742]
[1756438205784,3.23666523,215.96,215.93,0.03093742]
[1756438205986,2.62880948,215.97,215.93,0.03093742]
[1756438206289,7.68,215.95,215.93,0.03093742]
[1756438207188,0.03367951,215.97,215.93,0.03093742]
[1756438207482,7.68,215.95,215.93,0.03093742]
[1756438207686,7.68,215.96,215.93,0.03093742]
[1756438208791,0.03367951,215.97,215.93,0.03093742]
[1756438209088,3.23276514,215.96,215.93,0.03093742]
[1756438209294,0.03367951,215.97,215.93,0.03093742]
[1756438209481,7.68,215.95,215.93,0.03093742]
[1756438209789,7.68,215.96,215.93,0.03093742]
[1756438211290,0.03367951,215.97,215.94,7.62]
[1756438211589,0.03367951,215.97,215.93,2.62606739]
[1756438212290,0.03367951,215.97,215.94,7.62]
[1756438212593,0.03367951,215.97,215.93,2.62606739]
[1756438213085,0.03367951,215.97,215.93,7.65093742]
[1756438213292,7.68,215.96,215.93,0.03093742]
[1756438215185,2.62880948,215.97,215.93,0.03093742]
[1756438215391,6.50768836,215.96,215.93,0.03093742]
[1756438215592,2.62880948,215.97,215.93,0.03093742]
[1756438215793,7.68,215.95,215.93,0.03093742]
[1756438215991,2.62880948,215.97,215.93,0.03093742]
[1756438216185,7.68,215.95,215.93,0.03093742]
[1756438216386,16.78177522,215.94,215.93,0.03093742]
[1756438216986,17.24177522,215.94,215.82,7.62]
[1756438217199,7.68,215.9,215.82,7.62]
[1756438218295,0.02951805,215.88,215.82,7.62]
[1756438219889,0.02951805,215.88,215.83,7.62]
[1756438220086,0.02951805,215.88,215.86,7.62]
[1756438220292,0.02951805,215.88,215.85,2.59512997]
[1756438220887,0.02951805,215.88,215.86,7.62]
[1756438221096,0.02951805,215.88,215.85,2.59512997]
[1756438221491,0.02951805,215.88,215.86,7.62]
[1756438222088,0.02951805,215.88,215.85,2.59512997]
[1756438222294,0.02951805,215.88,215.86,7.62]
[1756438222491,0.02951805,215.88,215.85,2.59512997]
[1756438222691,0.02951805,215.88,215.86,7.62]
[1756438223592,0.02951805,215.88,215.85,2.59512997]
[1756438223796,0.02951805,215.88,215.82,7.19553773]
[1756438223997,0.02951805,215.88,215.85,2.59512997]
[1756438224290,0.02951805,215.88,215.86,7.62]
[1756438225995,0.02951805,215.88,215.87,0.46]
[1756438226190,7.68,216.0,215.88,7.62]
[1756438226395,7.68,216.0,215.85,2.59512997]
[1756438226396,3.27336999,215.99,215.9,7.62]
[1756438226690,7.68,216.0,215.9,7.62]
[1756438227094,10.27512997,216.04,215.93,7.62]
[1756438227293,6.51237533,216.03,215.93,7.62]
[1756438227490,0.03384568,215.97,215.93,7.62]
[1756438227892,0.03384568,215.97,215.95,2.59512997]
[1756438228099,0.03384568,215.97,215.96,7.62]
[1756438229002,7.68,216.08,215.96,8.08]
[1756438229298,7.68,216.08,215.99,7.62]
[1756438230306,7.68,216.08,216.01,0.03373149]
[1756438230902,6.50449723,216.07,216.01,0.03373149]
[1756438231098,7.68,216.04,216.01,0.03373149]
[1756438231296,2.59512997,216.05,216.01,0.03373149]
[1756438231598,7.68,216.04,216.01,0.03373149]
[1756438232101,2.59512997,216.05,216.01,0.03373149]
[1756438232297,7.68,216.04,216.01,0.03373149]
[1756438232694,2.59512997,216.05,216.01,0.03373149]
[1756438233102,7.68,216.04,216.01,0.03373149]
[1756438233301,2.59512997,216.05,216.01,0.03373149]
[1756438233493,7.68,216.04,216.01,0.03373149]
[1756438233693,2.59512997,216.05,216.01,0.03373149]
[1756438233896,7.68,216.04,216.01,0.03373149]
[1756438236504,436.83512997,216.09,216.01,0.03373149]
[1756438236704,434.24,216.09,216.01,0.03373149]
[1756438237009,436.83512997,216.09,216.01,0.03373149]
[1756438238007,7.04,216.09,216.01,0.03373149]
[1756438239508,7.04,216.09,216.02,7.64]
[1756438240407,7.04,216.09,216.01,0.03373149]
[1756438241804,7.04,216.09,216.01,7.67373149]
[1756438245712,7.04,216.09,216.01,0.03373149]
[1756438250013,2.59512997,216.07,216.01,0.03373149]
[1756438250419,7.04,216.06,216.01,0.03373149]
[1756438251012,7.04,216.03,216.01,0.03373149]
[1756438251218,7.5,216.03,216.01,0.03373149]
[1756438252309,7.5,216.03,215.89,7.64]
[1756438252513,2.59512997,216.0,215.89,7.64]
[1756438252713,7.04,215.99,215.89,7.64]
[1756438253619,0.0323113,215.96,215.89,7.64]
[1756438255217,7.04,215.95,215.86,2.59512997]
[1756438257317,2.59512997,215.94,215.83,7.64]
[1756438257517,2.59512997,215.91,215.83,7.64]
[1756438257716,7.04,215.9,215.83,7.64]
[1756438258118,0.03441648,215.89,215.83,7.64]
[1756438260317,0.03441648,215.89,215.72,7.19553773]
[1756438260618,9.63512997,215.83,215.76,7.64]
[1756438262323,9.63512997,215.83,215.72,7.64]
[1756438263118,0.03361519,215.8,215.72,7.64]
[1756438263324,0.03361519,215.8,215.72,10.23512997]
[1756438263622,0.03361519,215.8,215.73,7.64]
[1756438265127,0.03361519,215.8,215.75,7.64]
[1756438266326,0.03361519,215.8,215.75,7.66]
[1756438266525,0.03361519,215.8,215.77,2.59512997]
[1756438266923,0.03361519,215.8,215.78,7.66]
[1756438267322,0.03361519,215.8,215.77,2.59512997]
[1756438267529,0.03361519,215.8,215.78,7.66]
[1756438267829,0.03361519,215.8,215.77,2.59512997]
[1756438268028,0.03361519,215.8,215.78,7.66]
[1756438268224,0.03361519,215.8,215.77,2.59512997]
[1756438268429,0.03361519,215.8,215.78,7.66]
[1756438268635,0.03361519,215.8,215.74,10.25512997]
[1756438269021,7.07,215.84,215.74,10.25512997]
[1756438269530,0.02926939,215.79,215.73,7.66]
[1756438270825,7.07,215.78,215.69,2.59512997]
[1756438271131,7.07,215.78,215.7,7.66]
[1756438271433,2.59512997,215.85,215.73,7.66]
[1756438271630,0.03447283,215.76,215.73,7.66]
[1756438271830,7.07,215.84,215.73,7.66]
[1756438272032,2.59512997,215.82,215.73,7.66]
[1756438272225,0.03495823,215.77,215.72,2.59512997]
[1756438272426,0.03495823,215.77,215.73,7.66]
[1756438272630,0.03495823,215.77,215.7,7.66]
[1756438273128,9.66512997,215.82,215.72,2.59512997]
[1756438273432,0.03322197,215.76,215.73,7.66]
[1756438273635,0.03322197,215.76,215.68,7.66]
[1756438273829,0.03322197,215.76,215.72,7.66]
[1756438274026,0.03322197,215.76,215.71,2.59512997]
[1756438274222,0.03322197,215.76,215.71,7.66]
[1756438274427,0.03322197,215.76,215.7,7.66]
[1756438278535,7.07,215.75,215.64,7.66]
[1756438278735,7.07,215.72,215.64,7.66]
[1756438279338,2.62566014,215.7,215.64,7.66]
[1756438279836,7.07,215.69,215.59,7.66]
[1756438280434,0.03053017,215.7,215.61,2.59512997]
[1756438280736,0.03053017,215.7,215.62,7.66]
[1756438282444,2.62566014,215.7,215.62,7.66]
[1756438284539,0.03053017,215.7,215.62,7.66]
[1756438288644,0.03053017,215.7,215.65,7.66]
[1756438289051,0.03053017,215.7,215.68,7.66]
[1756438289450,7.07,215.8,215.68,8.12]
[1756438289650,7.07,215.8,215.71,7.66]
[1756438290648,7.07,215.8,215.73,0.03242101]
[1756438298061,2.59512997,215.78,215.73,0.03242101]
[1756438298249,7.56,215.74,215.73,0.03242101]
[1756438298455,7.56,215.74,215.63,7.58]
[1756438298657,2.59512997,215.7,215.63,7.58]
[1756438298856,7.56,215.69,215.58,2.59512997]
[1756438299057,2.59512997,215.7,215.66,0.03063259]
[1756438299257,7.56,215.69,215.66,0.03063259]
[1756438299561,7.56,215.69,215.59,7.58]
[1756438299863,2.59512997,215.7,215.65,0.03520671]
[1756438300165,7.56,215.66,215.65,0.03520671]
[1756438300562,7.56,215.66,215.56,7.58]
[1756438300955,2.59512997,215.67,215.63,0.03519644]
[1756438301152,7.56,215.66,215.63,0.03519644]
[1756438301356,2.59512997,215.67,215.63,0.03519644]
[1756438301557,7.56,215.66,215.63,0.03519644]
[1756438301756,10.15512997,215.64,215.63,0.03519644]
[1756438303054,10.15512997,215.68,215.63,0.03519644]
[1756438303358,10.15512997,215.68,215.59,7.58]
[1756438303760,2.59512997,215.71,215.62,7.58]
[1756438304362,7.56,215.7,215.64,0.0328706]
[1756438305763,53.27512997,215.74,215.65,7.58]
[1756438306264,10.15512997,215.74,215.65,7.58]
[1756438310064,7.56,215.7,215.64,0.0328706]
[1756438310365,10.15512997,215.65,215.64,0.0328706]
[1756438310571,10.15512997,215.65,215.54,7.58]
[1756438311062,10.15512997,215.65,215.57,0.03094035]
[1756438311669,7.56,215.58,215.57,0.03094035]
[1756438312566,7.56,215.57,215.42,7.58]
[1756438312773,2.59512997,215.51,215.42,7.58]
[1756438313368,2.59512997,215.5,215.42,7.58]
[1756438313772,0.03374375,215.48,215.42,7.58]
[1756438318166,0.03374375,215.48,215.35,7.58]
[1756438318572,4.10583543,215.53,215.36,7.58]
[1756438318769,0.03331428,215.44,215.38,7.58]
[1756438319771,0.03331428,215.44,215.4,7.58]
[1756438320373,0.03331428,215.44,215.38,7.58]
[1756438324378,0.03331428,215.44,215.31,7.58]
[1756438324872,7.56,215.46,215.31,7.58]
[1756438325072,0.0328241,215.4,215.31,7.58]
[1756438329276,0.0328241,215.4,215.3,259.52374303]
[1756438329277,0.0328241,215.4,215.34,7.54]
[1756438329679,0.0328241,215.4,215.38,7.54]
[1756438329877,7.42,215.5,215.4,7.54]
[1756438330073,7.42,215.54,215.4,7.54]
[1756438330382,7.42,215.54,215.42,7.54]
[1756438330880,7.42,215.54,215.43,85.62]
[1756438331078,7.42,215.54,215.46,0.03438879]
[1756438331782,7.42,215.52,215.46,0.03438879]
[1756438332185,7.42,215.52,215.38,91.08]
[1756438332380,4.10583543,215.53,215.38,91.08]
[1756438332583,7.42,215.52,215.47,0.03354482]
[1756438332987,4.10583543,215.53,215.47,0.03354482]
[1756438333580,7.42,215.52,215.47,0.03354482]
[1756438333886,4.10583543,215.53,215.47,0.03354482]
[1756438334080,7.42,215.55,215.47,0.03354482]
[1756438334583,7.42,215.55,215.43,7.54]
[1756438334784,7.42,215.55,215.49,0.02987438]
[1756438337486,4.10583543,215.53,215.49,0.02987438]
[1756438337679,7.42,215.52,215.49,0.02987438]
[1756438337878,4.10583543,215.53,215.49,0.02987438]
[1756438338078,7.42,215.52,215.49,0.02987438]
[1756438338489,4.10583543,215.53,215.49,0.02987438]
[1756438338790,7.42,215.52,215.49,0.02987438]
[1756438338981,4.10583543,215.53,215.49,0.02987438]
[1756438339185,7.42,215.52,215.49,0.02987438]
[1756438339384,4.10583543,215.53,215.49,0.02987438]
[1756438339679,7.42,215.52,215.49,0.02987438]
[1756438340587,4.56583543,215.53,215.49,0.02987438]
[1756438341793,4.10583543,215.5,215.39,7.54]
[1756438341983,7.42,215.49,215.39,7.54]
[1756438343185,0.03076906,215.46,215.39,7.54]
[1756438344792,0.03076906,215.46,215.42,7.54]
[1756438344996,7.42,215.59,215.46,7.54]
[1756438345993,311.6,215.62,215.51,7.54]
[1756438346200,7.42,215.63,215.51,7.54]
[1756438346590,4.10583543,215.67,215.51,7.54]
[1756438346798,4.10583543,215.67,215.55,7.57054053]
[1756438347495,7.42,215.68,215.55,7.57054053]
[1756438348002,7.42,215.68,215.55,7.54]
[1756438348300,7.42,215.68,215.59,0.03374857]
[1756438352400,7.42,215.66,215.59,0.03374857]
[1756438352904,7.42,215.66,215.55,7.54]
[1756438353106,7.42,215.66,215.6,0.03042735]
[1756438354399,4.10583543,215.69,215.6,0.03042735]
[1756438357807,7.16,215.68,215.6,0.03042735]
[1756438358504,7.16,215.72,215.61,7.67]
[1756438359107,7.16,215.72,215.63,7.67]
[1756438359314,7.16,215.72,215.64,0.03553122]
[1756438361914,7.16,215.76,215.65,7.67]
[1756438362618,7.16,215.81,215.69,7.67]
[1756438363413,7.16,215.81,215.73,0.03338664]
[1756438364011,11.26583543,215.81,215.73,0.03338664]
[1756438368113,4.10583543,215.77,215.73,0.03338664]
[1756438368319,7.16,215.76,215.73,0.03338664]
[1756438368815,4.10583543,215.77,215.73,0.03338664]
[1756438369022,7.16,215.76,215.73,0.03338664]
[1756438369415,7.16,215.76,215.6,7.67]
[1756438369615,7.16,215.72,215.6,7.67]
[1756438373422,7.16,215.72,215.62,7.67]
[1756438375917,7.16,215.72,215.59,311.56]
[1756438376321,4.10583543,215.73,215.59,311.56]
[1756438376518,7.16,215.72,215.59,311.56]
[1756438377023,4.10583543,215.73,215.59,311.56]
[1756438377223,7.16,215.72,215.59,311.56]
[1756438377620,4.10583543,215.73,215.59,311.56]
[1756438377820,7.16,215.72,215.59,311.56]
[1756438378026,7.16,215.72,215.6,7.67]
[1756438379320,4.10583543,215.69,215.59,311.56]
[1756438379527,7.16,215.68,215.58,115.7]
[1756438380525,7.16,215.68,215.56,7.67]
[1756438380825,7.16,215.64,215.52,38.95]
[1756438381024,7.16,215.64,215.53,7.67]
[1756438382431,11.26583543,215.64,215.53,7.67]
[1756438382621,0.03216523,215.61,215.56,0.03377075]
[1756438382825,7.16,215.6,215.56,0.03377075]
[1756438384028,2.63555943,215.61,215.56,0.03377075]
[1756438384429,7.16,215.6,215.56,0.03377075]
[1756438384631,2.63555943,215.61,215.56,0.03377075]
[1756438384829,7.16,215.6,215.56,0.03377075]
[1756438385333,0.03216523,215.61,215.56,0.03377075]
[1756438385528,7.16,215.6,215.56,0.03377075]
[1756438385732,0.03216523,215.61,215.56,0.03377075]
[1756438386032,0.03216523,215.61,215.57,7.67]
[1756438386428,7.61216523,215.61,215.57,7.67]
[1756438388334,0.03216523,215.61,215.56,0.03377075]
[1756438388539,0.03216523,215.61,215.57,7.41]
[1756438389034,0.03216523,215.61,215.57,11.97271703]
[1756438389332,0.03216523,215.61,215.58,7.41]
[1756438389731,0.03216523,215.61,215.57,4.56271703]
[1756438389927,0.03216523,215.61,215.58,7.41]
[1756438390435,0.03216523,215.61,215.57,4.56271703]
[1756438390837,0.03216523,215.61,215.58,7.41]
[1756438391236,0.03216523,215.61,215.57,4.56271703]
[1756438391931,0.03216523,215.61,215.58,7.41]
[1756438392135,0.03216523,215.61,215.57,4.56271703]
[1756438392337,0.03216523,215.61,215.58,7.41]
[1756438392533,0.03216523,215.61,215.57,4.56271703]
[1756438393529,0.03216523,215.61,215.58,7.41]
[1756438394034,0.03216523,215.61,215.56,0.03377075]
[1756438394430,0.03216523,215.61,215.57,7.41]
[1756438396238,0.03216523,215.61,215.56,0.03377075]
[1756438396537,0.03216523,215.61,215.57,7.41]
[1756438396737,0.03216523,215.61,215.56,0.03377075]
[1756438397140,0.03216523,215.61,215.57,7.41]
[1756438397340,0.03216523,215.61,215.56,0.03377075]
[1756438397637,0.03216523,215.61,215.57,7.41]
[1756438398339,0.03216523,215.61,215.56,0.03377075]
[1756438398640,0.03216523,215.61,215.57,7.41]
[1756438399937,7.61216523,215.61,215.57,7.41]
[1756438400136,7.58,215.6,215.56,0.03377075]
[1756438401431,0.03216523,215.61,215.56,0.03377075]
[1756438401841,0.03216523,215.61,215.57,7.41]
[1756438402036,0.03216523,215.61,215.56,0.03377075]
[1756438402239,0.03216523,215.61,215.57,7.41]
[1756438402732,0.03216523,215.61,215.56,0.03377075]
[1756438402939,0.03216523,215.61,215.57,7.41]
[1756438403336,0.03216523,215.61,215.56,0.03377075]
[1756438403735,0.03216523,215.61,215.57,7.41]
[1756438403933,0.03216523,215.61,215.58,7.41]
[1756438404142,0.03216523,215.61,215.57,4.10271703]
[1756438404342,0.03216523,215.61,215.58,7.41]
[1756438404546,0.03216523,215.61,215.57,4.10271703]
[1756438404733,0.03216523,215.61,215.58,7.41]
[1756438405139,0.03216523,215.61,215.57,4.10271703]
[1756438405641,0.03216523,215.61,215.58,7.41]
[1756438406444,0.03216523,215.61,215.57,4.10271703]
[1756438406639,0.03216523,215.61,215.58,7.41]
[1756438407237,0.03216523,215.61,215.57,4.10271703]
[1756438407442,0.03216523,215.61,215.6,10.01034895]
[1756438407840,7.58,215.7,215.6,2.60034895]
[1756438408147,7.58,215.7,215.63,2.60034895]
[1756438408348,2.60034895,215.75,215.63,2.60034895]
[1756438408550,7.58,215.74,215.64,7.41]
[1756438409047,7.58,215.74,215.67,0.03531281]
[1756438410354,33.36,215.8,215.67,0.03531281]
[1756438410355,2.60034895,215.72,215.67,0.03531281]
[1756438410546,7.58,215.71,215.67,0.03531281]
[1756438410746,7.58,215.71,215.59,7.41]
[1756438410951,7.58,215.71,215.67,0.03080899]
[1756438412156,2.60034895,215.72,215.67,0.03080899]
[1756438412350,7.58,215.71,215.67,0.03080899]
[1756438412551,2.60034895,215.72,215.67,0.03080899]
[1756438412852,7.58,215.71,215.67,0.03080899]
[1756438413252,2.60034895,215.72,215.67,0.03080899]
[1756438413449,7.58,215.71,215.67,0.03080899]
[1756438413853,7.58,215.68,215.57,7.41]
[1756438414053,7.58,215.65,215.57,7.41]
[1756438416457,7.58,215.65,215.55,2.60034895]
[1756438416853,7.58,215.65,215.56,7.52]
[1756438418957,0.03466737,215.63,215.56,7.52]
[1756438420657,2.60034895,215.6,215.52,7.52]
[1756438420853,2.60034895,215.6,215.46,311.48]
[1756438420854,7.66,215.59,215.47,7.52]
[1756438421052,7.66,215.56,215.47,7.52]
[1756438423857,7.66,215.53,215.43,7.52]
[1756438427966,0.03371697,215.54,215.45,2.60034895]
[1756438428167,0.03371697,215.54,215.46,7.52]
[1756438428367,2.60034895,215.56,215.46,7.52]
[1756438428866,0.03522473,215.52,215.46,7.52]
[1756438432664,7.66,215.51,215.42,93.09899848]
[1756438436672,0.03522473,215.52,215.42,85.57899848]
[1756438436868,0.03522473,215.52,215.43,7.52]
[1756438441676,0.03522473,215.52,215.45,2.60034895]
[1756438441881,0.03522473,215.52,215.46,7.52]
[1756438443481,0.03522473,215.52,215.42,82.97864953]
[1756438443482,7.66,215.51,215.42,208.73899848]
[1756438444483,7.66,215.51,215.42,206.13864953]
[1756438444679,10.26034895,215.51,215.42,90.49864953]
[1756438448188,7.66,215.51,215.42,90.49864953]
[1756438449183,7.69,215.49,215.42,82.97864953]
[1756438449381,2.60034895,215.47,215.42,82.97864953]
[1756438449888,7.69,215.46,215.42,82.97864953]
[1756438450782,7.69,215.46,215.42,90.30864953]
[1756438450984,7.69,215.46,215.42,7.33]
[1756438451792,0.03409046,215.47,215.38,7.33]
[1756438451991,0.03409046,215.47,215.42,0.03045022]
[1756438452895,0.03409046,215.47,215.43,7.33]